Workbook

Sheet HOME
B1: NUTRITIONAL
C2: RESPONSE | J2: Verson 1.0
D3: DETERMINATION
E4: OPTIMIZATION
B6: A workbook to determine the best arrangement of levels and replicates
C7: for estimating nutritional requirements
B10: Dmitry Vedenov | E10: Department of Agricultural Economics | N10: vedenov@tamu.edu
E11: Texas A&M University
E12: College Station, TX 77843
B14: Gene Pesti | E14: Department of Poultry Science | N14: gpesti@uga.edu
E15: The University of Georgia
E16: Athens, Georgia 30602

Sheet Information
A2: OBJECTIVE: | B2: NuRDO simulates a series of experiments and calculates the nutritional ruquirement by two spline functions, a second order polynomial and a sigmoidal model.
B4: The broken line linear model depicts a linear response to increasing levels of the limiting nutrient, then a plateau with a slope of zero.
B6: The broken line quadratic model depicts a non-linear diminishing returns response to increasing levels of the limiting nutrient, then a plateau with a slope of zero.
B8: Experimental "results" from different combinations of nutrient levels and replicates per level can be calculated.
B10: The combination of levels & reps with the smallest standard error of the requirement should be the most efficient design for determining requirements
A13: BACKGROUND: | B13: It is widely held that enzyme catylized reactions follow Michales-Menten kenetics.
B15: Some enzyme catalyzed reaction should be limiting performance whenever a nutrient is at a limiting concentration in the diet.
B17: Mercer, Morgan and Flodin (1975) examined a series of nutritional responses and showed how they could all be fitted very well using what they called the "Saturation Kinetics" response model.
B19: The SK model is a super set of the Mechalis-Menton model of enzyme kinetics.
B21: Nutritionists may believe that the true response to increasing levels of nutrients in a diet result in a non-linear response.
B23: But in searching for a requirement, they most often use one-way ANOVA and a multiple range test to determine requirements.
B25: Spline models with an ascending line and plateau can be used to estimate a requirement with confidence limits.
B27: The SK model only approaches a maximum. Requirements are sometimes taken as the nutrient intake as some arbitrary fraction of the maximal response.
B29: Sometimes quadratic polynomials are fitted to nutritional data and the nutrient level at the maximum response is taken to represent the requirement.
B31: With NuRDO researchers can simulate what they think is the real shape of the response curve.
B33: They can run up to 1000 simulated experiments to see the combination of levels and replications that minimize the standard error of the requierments
B34: using broken-line models.
B37: Bibliography
B39: Almquist, H. J. 1953. Interpretation of amino acid requirement data according to the law of diminishing returns. Arch. Biochem.Biophys. 44:245–247.
B40: Baker DH. 1987.Problems and pitfalls in animal experiments designed to establish dietary requirements for essential nutrient. J Nutr,; 116:2339-2349.
B41: Dourmad JY, Étienne M, Valancogne A, Dubois S, van Milgen J, Noblet J. InraPorc. 2008. A model and decision support tool for the nutrition of sows. Anim Feed Sci Tech.; 143:372–386.
B42: Duncan, D.B. 1955. Multiple range and multiple F tests. Biometrics, 11: 1–42.
B43: Fisher, C., T. R. Morris, and R. C. Jennings. 1973. A model for the description and prediction of the response of laying hens to amino acid intake. Br. Poult. Sci. 14:469–484.
B44: Guevara VR. 2004. Use of nonlinear programming to optimize performance response to energy density in broiler feed formulation. Poultry Science. 83:147-151.
B45: Hassanien MH, Hussein LA, Robinson EN, Mercer LP. 2003. Human iodine requirements determined by the saturation kinetics model. J Nutr Biochem.; 14: 280–287.
B46: Hernandez-Llamas A. Conventional and alternative dose–response models to estimate nutrient requirements of aquaculture species. Aquacult. 2009; 292: 207–213.
B47: Khalaji S, Naderi AH, Mousavi SN, Zaghari M, Malakzadegan A. 2014. Determination of phosphorus requirement for post molted laying hens using nonlinear and multivariate nonlinear mixed effects models. J Poult Sci. 51: 22-28.
B48: Lamberson WR, Firman. 2002 JD.. A comparison of quadratic versus segmented regression procedures for estimating nutrient requirements. Poult Sci.; 81: 481-484.
B49: Mercer, L. P. 1982. The quantitative nutrient-response relationship. J. Nutr. 112:560–566.
B50: Mercer, L. P. 1992. The determination of nutritional requirements: Mathematical modeling of nutrient-response curves. J. Nutr.122:706–708.
B51: Mercer, L. P., N. W. Flodin, and P. H. Morgan. 1978. New methods for comparing the biological efficiency of alternative nutrient sources. J. Nutr. 108:1244–1249.
B52: Microsoft Corporation. One Microsoft way Redmond WA 98052
B53: Morgan, P. H., L. P. Mercer, and N. W. Flodin. 1975. General model for nutritional responses in higher animals. Proc. Natl. Acad. Sci. USA 72:4327–4331.
B54: Pesti GM, Vedenov D, Cason JA, Billard L. 2009. A comparison of methods to estimate nutritional requirements from experimental data. Br Poult Sci.; 50:16-32.
B55: Pesti GM, Vedenov D. 2011. An economic comparison of several models fitted to nutritional response data. J Anim Sci. 89: 3344-3349.
B56: Robbins KR, Norton HW, Baker DH. Estimation of nutrient requirements from growth data. J Nutr. 1979; 109: 1710-1714.
B57: Robbins KR, Norton HW, Baker DH. Estimation of nutrient requirements from growth data. 1979. J Nutr. 109: 1710-1714.
B58: Robbins KR, Saxton AM, Southern LL. 2006 Estimation of nutrient requirements using broken-line regression analysis. J Anim Sci.; 84 suppl: E155-65.
B59: Scheffe, H. 1953. A method for judging all contrasts in the analysis of variance. Biometrika, 40: 87–104.
B60: Shearer KD. 2000. Experimental design, statistical analysis and modelling of dietary nutrient requirement studies for fish: a critical review. Aquacult Nutr. 6: 91–102.
B61: Simongiovanni A, Corrent E, Floc’h NL, van Milgen J. 2012. Estimation of the tryptophan requirement in piglets by meta-analysis. Anim.; 6: 594-602.
B62: Sterling KG, Vedenov DV, Pesti GM, Bakalli RI. 2005. Economically optimal dietary crude protein and lysine levels for starting broiler chicks. Poult Sci.; 84: 29-36.
B63: Strathe AB, Lemme A, Htoo JK, Kebreab E. 2011. Estimating digestible methionine requirements for laying hens using multivariate nonlinear mixed effect models. Poult Sci. 90: 1496-1507.
B64: van der Voet H, de Boer WJ, Souverein OW, Doets EL, van't Veer P. A 2014 Statistical method to base nutrient recommendations on meta-analysis of intake and health-related status biomarkers. PLoS ONE. 9: e93171.
B65: Vedenov D, Pesti GM. 2008.A comparison of methods of fitting several models to nutritional response data. J Anim Sci.; 6: 500-507.
B66: Vedenov D, Pesti GM. 2010.An economic analysis of a methionine source comparison response model. Poult Sci. 89:2514-2520.
B67: Waldroup PW, Oviedo-Rondon EO. 2002Models to estimate amino acid requirements for broiler chickens: a review. Int J Poult Sci. 1: 106-113
B68: Whittemore CT. 1980. The use of a computer model in determining the nutrient requirement of pigs. Proc Nutr Soc.; 39: 205-211.

Sheet Instructions
A1: Do not move cells!
A2: 1. Make changes in cells with yellow text and red backgrounds only
A3: 2. On the "Levels & Reps" tab:
A4: 2a. Press the "Create Grid" button on the "Levels & Reps" tab
A5: 2b. If you want to adjust levels, edit directly in corresponding cells
A6: 3. On the "Simulations" tab:
A7: 3a. Select the baseline model which will be used to generate random data
A8: 3b. Enter "true" coefficients of the baseline mode
A9: 4. Provide guesses for coefficients for all remaining models (this is necessary to ensure convergence of Solver Routine)
A10: 5. Select simulation parameters (number of "experiments" and coefficient of variation for random draws)
A11: 6.. Press "Run Simulations"
A13: Note: If you end up with poor estimates for a particular model, try to provide more accurate initial guesses for the coefficients

Sheet Levels & Reps
B3: 1. Experiment Design | K3: Experimental Grid
B5: Number of Levels (>1, < 25) | C5: 4
B6: Number of Reps (max = 20) | C6: 4
B8: Minimum Nutrient Level | C8: 0.8
B9: Maximum Nutrient Level | C9: 1.8
F10: Levels
F11: 1 | G11: 2 | H11: 3 | I11: 4
D12: Replicates | E12: 1 | F12: 0.8 | G12: 1.133333333 | H12: 1.466666667 | I12: 1.8
E13: 2 | F13: 0.8 | G13: 1.133333333 | H13: 1.466666667 | I13: 1.8
E14: 3 | F14: 0.8 | G14: 1.133333333 | H14: 1.466666667 | I14: 1.8
E15: 4 | F15: 0.8 | G15: 1.133333333 | H15: 1.466666667 | I15: 1.8

Sheet Simulations
C3: 1. Choose One Model to Simulate Experiments From | K3: 3. Choose Simulation Parameters
C5: Model | D5: True Parameters of the Response Function | K5: Selected ("True") Model | O5: BL
D6: Max | E6: Rate Constant | F6: Requirement | K6: Number of Experiments (Max = 1000) | O6: 20
D7: 4.36 | E7: -5.57 | F7: 1.06 | K7: Coefficient of variation (%) | O7: 0.08
D8: Max | E8: Rate Constant | F8: Requirement
D9: 4.4784 | E9: -5.5972 | F9: 1.3052
D10: Const | E10: Linear | F10: Quadratic
D11: -5.0503 | E11: 14.5969 | F11: -5.5897
D12: Max | E12: Rate Constant | F12: Intercept | G12: Kinetic Order
D13: 17837.4902 | E13: 380.3346 | F13: -43.0356 | G13: 0.0864
C17: 2. Select up to Four Model to Fit to Simulated Experiments
C19: Model | D19: Initial Guesses for the Parameters of Fitted Functions
D20: Max | E20: Rate Constant | F20: Requirement
D21: 4.36 | E21: -5.57 | F21: 1.06
D22: Max | E22: Rate Constant | F22: Requirement
D23: 4.36 | E23: -5.6 | F23: 1.06
D24: Const | E24: Linear | F24: Quadratic
D25: -5.05 | E25: 14.6 | F25: -5.59
D26: Max | E26: Rate Constant | F26: Intercept | G26: Kinetic Order
D27: 17837.5 | E27: 380.3 | F27: -43 | G27: 0.08
C32: 4. Results
C34: Experiment # | D34: Model Fits
D35: Broken Line Model | J35: Broken Line Quadratic Model | P35: Quadratic (2nd Order Polynomial) | V35: Saturation Kinetics
D36: Max/Min | E36: Rate Constant | F36: Requirement | G36: R-Squared | H36: SE of Requirement | J36: Max/Min | K36: Rate Constant | L36: Requirement | M36: R-Squared | N36: SE of Requirement | P36: Const | Q36: Linear | R36: Square | S36: Requirement (Calculated) | T36: R-Squared | V36: Max/Min | W36: Rate Constant | X36: Intercept | Y36: Kinetic Order | Z36: R-Squared
C37: Average | D37: =IF(OR(ISBLANK(D$41),ISNA(D$41),D$41="N/A"),"N/A",AVERAGE(D$41:D$1040)) -> 4.3907913 | E37: =IF(OR(ISBLANK(E$41),ISNA(E$41),E$41="N/A"),"N/A",AVERAGE(E$41:E$1040)) -> -5.135450486 | F37: 1.101199538 | G37: 0.7974293819 | H37: 0.04612416577 | J37: =IF(OR(ISBLANK(J$41),ISNA(J$41),J$41="N/A"),"N/A",AVERAGE(J$41:J$1040)) -> 4.429155333 | K37: -8.443860224 | L37: 1.268030471 | M37: 0.7883015812 | N37: 0.09488437164 | P37: =IF(OR(ISBLANK(P$41),ISNA(P$41),P$41="N/A"),"N/A",AVERAGE(P$41:P$1040)) -> -6.743464075 | Q37: 17.51992984 | R37: -6.850446973 | S37: 1.307549076 | T37: 0.790452695 | V37: =IF(OR(ISBLANK(V$41),ISNA(V$41),V$41="N/A"),"N/A",AVERAGE(V$41:V$1040)) -> 17837.64989 | W37: 317.3887201 | X37: -54.12880443 | Y37: 0.04820637316 | Z37: 0.669799613
C38: Std. Dev. | D38: =IF(OR(ISBLANK(D$41),ISNA(D$41),D$41="N/A"),"N/A",STDEV(D$41:D$1040)) -> 0.08183330857 | E38: =IF(OR(ISBLANK(E$41),ISNA(E$41),E$41="N/A"),"N/A",STDEV(E$41:E$1040)) -> 1.135268617 | F38: 0.0535127844 | G38: 0.04509557053 | H38: 0.01335713307 | J38: =IF(OR(ISBLANK(J$41),ISNA(J$41),J$41="N/A"),"N/A",STDEV(J$41:J$1040)) -> 0.1126022156 | K38: 4.140437379 | L38: 0.1283021664 | M38: 0.05306084641 | N38: 0.04382853471 | P38: =IF(OR(ISBLANK(P$41),ISNA(P$41),P$41="N/A"),"N/A",STDEV(P$41:P$1040)) -> 2.42363643 | Q38: 4.70417797 | R38: 2.185796078 | S38: 0.1033280453 | T38: 0.04992820553 | V38: =IF(OR(ISBLANK(V$41),ISNA(V$41),V$41="N/A"),"N/A",STDEV(V$41:V$1040)) -> 0.1327640009 | W38: 53.0043761 | X38: 10.63591633 | Y38: 0.008110304389 | Z38: 0.09303085364
C39: Lower 95% | D39: =IF(OR(ISBLANK(D$41),ISNA(D$41),D$41="N/A"),"N/A",D$37-_xlfn.CONFIDENCE.NORM(0.05,D$38,COUNTA(D$41:D$1040))) -> 4.35492693 | E39: =IF(OR(ISBLANK(E$41),ISNA(E$41),E$41="N/A"),"N/A",E$37-_xlfn.CONFIDENCE.NORM(0.05,E$38,COUNTA(E$41:E$1040))) -> -5.632994752 | F39: 1.077746958 | G39: 0.7776657399 | H39: 0.04027025166 | J39: =IF(OR(ISBLANK(J$41),ISNA(J$41),J$41="N/A"),"N/A",J$37-_xlfn.CONFIDENCE.NORM(0.05,J$38,COUNTA(J$41:J$1040))) -> 4.379806143 | K39: -10.25845357 | L39: 1.211800601 | M39: 0.7650470673 | N39: 0.07567602235 | P39: =IF(OR(ISBLANK(P$41),ISNA(P$41),P$41="N/A"),"N/A",P$37-_xlfn.CONFIDENCE.NORM(0.05,P$38,COUNTA(P$41:P$1040))) -> -7.805650055 | Q39: 15.45827082 | R39: -7.808396739 | S39: 1.262264396 | T39: 0.7685710963 | V39: =IF(OR(ISBLANK(V$41),ISNA(V$41),V$41="N/A"),"N/A",V$37-_xlfn.CONFIDENCE.NORM(0.05,V$38,COUNTA(V$41:V$1040))) -> 17837.5917 | W39: 294.1589549 | X39: -58.79011463 | Y39: 0.04465194086 | Z39: 0.629027793
C40: Upper 95% | D40: =IF(OR(ISBLANK(D$41),ISNA(D$41),D$41="N/A"),"N/A",D$37+_xlfn.CONFIDENCE.NORM(0.05,D$38,COUNTA(D$41:D$1040))) -> 4.42665567 | E40: =IF(OR(ISBLANK(E$41),ISNA(E$41),E$41="N/A"),"N/A",E$37+_xlfn.CONFIDENCE.NORM(0.05,E$38,COUNTA(E$41:E$1040))) -> -4.63790622 | F40: 1.124652119 | G40: 0.817193024 | H40: 0.05197807987 | J40: =IF(OR(ISBLANK(J$41),ISNA(J$41),J$41="N/A"),"N/A",J$37+_xlfn.CONFIDENCE.NORM(0.05,J$38,COUNTA(J$41:J$1040))) -> 4.478504523 | K40: -6.629266879 | L40: 1.324260341 | M40: 0.8115560952 | N40: 0.1140927209 | P40: =IF(OR(ISBLANK(P$41),ISNA(P$41),P$41="N/A"),"N/A",P$37+_xlfn.CONFIDENCE.NORM(0.05,P$38,COUNTA(P$41:P$1040))) -> -5.681278094 | Q40: 19.58158885 | R40: -5.892497207 | S40: 1.352833757 | T40: 0.8123342938 | V40: =IF(OR(ISBLANK(V$41),ISNA(V$41),V$41="N/A"),"N/A",V$37+_xlfn.CONFIDENCE.NORM(0.05,V$38,COUNTA(V$41:V$1040))) -> 17837.70807 | W40: 340.6184853 | X40: -49.46749422 | Y40: 0.05176080547 | Z40: 0.7105714331
C41: 1 | D41: 4.280176299 | E41: -4.276577762 | F41: 1.11403403 | G41: 0.6970757631 | H41: 0.04219522596 | J41: 4.298747849 | K41: -6.340798577 | L41: 1.266891642 | M41: 0.6812604406 | N41: 0.1122789404 | P41: -5.748038249 | Q41: 15.73938784 | R41: -6.140339905 | S41: 1.281638157 | T41: 0.6844318809 | V41: 17837.50617 | W41: 377.5524581 | X41: -43.56596768 | Y41: 0.05205981047 | Z41: 0.5908914812
C42: 2 | D42: 4.497419469 | E42: -3.831029415 | F42: 1.202753429 | G42: 0.8455831641 | H42: 0.04305711841 | J42: 4.536470945 | K42: -4.274711679 | L42: 1.416309162 | M42: 0.840548743 | N42: 0.1019432941 | P42: -4.032174088 | Q42: 12.09708435 | R42: -4.26956978 | S42: 1.41666315 | T42: 0.840548625 | V42: 17837.54112 | W42: 356.5325341 | X42: -46.33184264 | Y42: 0.05896218571 | Z42: 0.8076974715
C43: 3 | D43: 4.252580158 | E43: -8.21811969 | F43: 0.989489335 | G43: 0.7781072539 | H43: 0.02386333556 | J43: 4.252570087 | K43: -20.4460301 | L43: 1.075974931 | M43: 0.7781072523 | N43: 0.05544545638 | P43: -9.697643274 | Q43: 23.20989283 | R43: -9.527592553 | S43: 1.218035548 | T43: 0.7617248059 | V43: 17837.8133 | W43: 303.5101034 | X43: -55.07789244 | Y43: 0.04341180906 | Z43: 0.5439969547
C44: 4 | D44: 4.525482815 | E44: -4.406141772 | F44: 1.142681135 | G44: 0.7668707497 | H44: 0.04089128168 | J44: 4.629331487 | K44: -4.317233963 | L44: 1.411512505 | M44: 0.7763042635 | N44: 0.1221370801 | P44: -3.965824564 | Q44: 12.17565818 | R44: -4.311790854 | S44: 1.411902687 | T44: 0.7763041931 | V44: 17837.61767 | W44: 313.6286923 | X44: -53.0735819 | Y44: 0.05171981509 | Z44: 0.7468903405
C45: 5 | D45: 4.362502159 | E45: -5.304058813 | F45: 1.099998952 | G45: 0.7847113809 | H45: 0.06245658261 | J45: 4.342048762 | K45: -11.21862453 | L45: 1.179965295 | M45: 0.7504027477 | N45: 0.07993627591 | P45: -9.32174377 | Q45: 22.29480119 | R45: -9.017867364 | S45: 1.236145992 | T45: 0.7494164998 | V45: 17837.84059 | W45: 211.2752196 | X45: -80.73784454 | Y45: 0.03278404777 | Z45: 0.5779669315
C46: 6 | D46: 4.472197206 | E46: -5.57658448 | F46: 1.070626198 | G46: 0.7760301425 | H46: 0.05087480492 | J46: 4.457003176 | K46: -11.62465038 | L46: 1.163039131 | M46: 0.7598083743 | N46: 0.07630720243 | P46: -9.841249778 | Q46: 23.80930667 | R46: -9.811281208 | S46: 1.213363789 | T46: 0.7840620723 | V46: 17837.73584 | W46: 283.5017066 | X46: -59.06318491 | Y46: 0.04017076917 | Z46: 0.5442340466
C47: 7 | D47: 4.439171004 | E47: -5.988983261 | F47: 1.063272007 | G47: 0.8206965747 | H47: 0.04164119817 | J47: 4.44266094 | K47: -11.05091555 | L47: 1.181404625 | M47: 0.8112139942 | N47: 0.06697796208 | P47: -10.61534296 | Q47: 25.03903591 | R47: -10.31031499 | S47: 1.214271142 | T47: 0.8524864594 | V47: 17837.77889 | W47: 255.164091 | X47: -66.10813291 | Y47: 0.0382639097 | Z47: 0.5942818103
C48: 8 | D48: 4.371398211 | E48: -3.480476821 | F48: 1.215177828 | G48: 0.8136129606 | H48: 0.05128597717 | J48: 4.555348541 | K48: -2.729283988 | L48: 1.57466035 | M48: 0.8114895472 | N48: 0.2437268051 | P48: -2.206843797 | Q48: 8.585605776 | R48: -2.724921911 | S48: 1.575385655 | T48: 0.8114894581 | V48: 17837.49926 | W48: 380.2675263 | X48: -43.29737512 | Y48: 0.0598208397 | Z48: 0.8009075865
C49: 9 | D49: 4.272273429 | E49: -4.856541737 | F49: 1.093914514 | G49: 0.7443795913 | H49: 0.06673886948 | J49: 4.304545299 | K49: -7.634363481 | L49: 1.241352788 | M49: 0.7381087016 | N49: 0.08934258276 | P49: -8.044207191 | Q49: 19.97785395 | R49: -8.035485532 | S49: 1.243101855 | T49: 0.7570463204 | V49: 17837.69901 | W49: 317.0816921 | X49: -52.59644086 | Y49: 0.04578630723 | Z49: 0.5964423983
C50: 10 | D50: 4.532559989 | E50: -4.946245988 | F50: 1.131272476 | G50: 0.7845261215 | H50: 0.03664566588 | J50: 4.557454595 | K50: -6.798289508 | L50: 1.299531875 | M50: 0.7812511533 | N50: 0.09656613279 | P50: -6.307662475 | Q50: 16.42228706 | R50: -6.185197079 | S50: 1.327547599 | T50: 0.78044348 | V50: 17837.72098 | W50: 318.657592 | X50: -52.2090831 | Y50: 0.05540291605 | Z50: 0.7147441493
C51: 11 | D51: 4.375714144 | E51: -5.922855061 | F51: 1.070527122 | G51: 0.8521278376 | H51: 0.03941683258 | J51: 4.393783183 | K51: -10.06572547 | L51: 1.204351528 | M51: 0.8445995218 | N51: 0.06121204265 | P51: -7.753986102 | Q51: 19.19204403 | R51: -7.525724377 | S51: 1.275096128 | T51: 0.835481362 | V51: 17837.53221 | W51: 236.7670017 | X51: -71.63417756 | Y51: 0.03899497467 | Z51: 0.7151467778
C52: 12 | D52: 4.45570336 | E52: -4.201679511 | F52: 1.155874761 | G52: 0.8489221797 | H52: 0.03349131901 | J52: 4.670807783 | K52: -3.123646304 | L52: 1.535923367 | M52: 0.8717270293 | N52: 0.1646329327 | P52: -2.69177405 | Q52: 9.583671457 | R52: -3.118385643 | S52: 1.536639876 | T52: 0.8717269611 | V52: 17837.50152 | W52: 378.6867319 | X52: -43.38544422 | Y52: 0.06262019258 | Z52: 0.8596993401
C53: 13 | D53: 4.385599542 | E53: -3.948068619 | F53: 1.134224346 | G53: 0.7734536833 | H53: 0.03842340679 | J53: 4.417569797 | K53: -5.097587025 | L53: 1.319487307 | M53: 0.7761233519 | N53: 0.102466934 | P53: -3.909630565 | Q53: 12.36239322 | R53: -4.573650352 | S53: 1.35147992 | T53: 0.775234205 | V53: 17837.50293 | W53: 378.3978281 | X53: -43.37540958 | Y53: 0.05357959504 | Z53: 0.7239501616
C54: 14 | D54: 4.440948676 | E54: -4.787543873 | F54: 1.098465119 | G54: 0.747173973 | H54: 0.06857652761 | J54: 4.455300883 | K54: -8.400318378 | L54: 1.219729654 | M54: 0.7328036714 | N54: 0.08787552286 | P54: -6.9113449 | Q54: 18.10430465 | R54: -7.163645708 | S54: 1.263623676 | T54: 0.733269325 | V54: 17837.67534 | W54: 323.1730335 | X54: -51.37232367 | Y54: 0.04730705049 | Z54: 0.6116671369
C55: 15 | D55: 4.34657832 | E55: -4.738579242 | F55: 1.099999267 | G55: 0.773256605 | H55: 0.06456709751 | J55: 4.361689663 | K55: -7.855919871 | L55: 1.230439876 | M55: 0.7387216788 | N55: 0.08781598784 | P55: -6.104812739 | Q55: 16.39728774 | R55: -6.384101205 | S55: 1.284228368 | T55: 0.7344368087 | V55: 17837.5072 | W55: 377.7054837 | X55: -43.49597656 | Y55: 0.05489970534 | Z55: 0.6373084286
C56: 16 | D56: 4.406570079 | E56: -4.968038142 | F56: 1.099999038 | G56: 0.7969721038 | H56: 0.06018894439 | J56: 4.401711324 | K56: -8.697380603 | L56: 1.21412637 | M56: 0.7300168315 | N56: 0.0878570837 | P56: -8.672510075 | Q56: 21.42980989 | R56: -8.718002088 | S56: 1.229055102 | T56: 0.7528108494 | V56: 17837.79985 | W56: 273.5712945 | X56: -61.42537833 | Y56: 0.03884556901 | Z56: 0.5625257167
C57: 17 | D57: 4.321136771 | E57: -5.189070272 | F57: 1.080431926 | G57: 0.7845668457 | H57: 0.05371983362 | J57: 4.351555622 | K57: -8.166468121 | L57: 1.229696341 | M57: 0.7801702441 | N57: 0.07830074765 | P57: -6.841456362 | Q57: 17.67130105 | R57: -6.934164487 | S57: 1.274219921 | T57: 0.7793691346 | V57: 17837.63482 | W57: 337.5075352 | X57: -49.15205566 | Y57: 0.05090874698 | Z57: 0.6649257939
C58: 18 | D58: 4.352949804 | E58: -5.710415247 | F58: 1.07716443 | G58: 0.8219564608 | H58: 0.04648046362 | J58: 4.42843618 | K58: -7.274706296 | L58: 1.278362169 | M58: 0.8347524452 | N58: 0.07624303517 | P58: -6.962459663 | Q58: 17.55709107 | R58: -6.740504955 | S58: 1.302357256 | T58: 0.8350741547 | V58: 17837.69115 | W58: 282.8103594 | X58: -59.40187403 | Y58: 0.04784652996 | Z58: 0.744676919
C59: 19 | D59: 4.312335142 | E59: -5.063195647 | F59: 1.055615952 | G59: 0.8616332094 | H59: 0.03345096229 | J59: 4.317559328 | K59: -9.178785574 | L59: 1.178841678 | M59: 0.8546457693 | N59: 0.05708497141 | P59: -6.644745787 | Q59: 17.82478209 | R59: -7.184174152 | S59: 1.240558881 | T59: 0.8566528605 | V59: 17837.50473 | W59: 378.3853091 | X59: -43.35847971 | Y59: 0.04780649461 | Z59: 0.6706143457
C60: 20 | D60: 4.412529421 | E60: -7.294804361 | F60: 1.028468904 | G60: 0.8769310383 | H60: 0.02451786809 | J60: 4.408511222 | K60: -14.58176507 | L60: 1.139008823 | M60: 0.873975863 | N60: 0.04953644287 | P60: -8.595831106 | Q60: 20.92499778 | R60: -8.332225311 | S60: 1.255666824 | T60: 0.8370444453 | V60: 17837.89517 | W60: 263.5982087 | X60: -63.91362312 | Y60: 0.04293619463 | Z60: 0.6874244702

Sheet Calculations
A1: This worksheet is used for intermediate calculations. All data will be overwritten
S3: Partial Derivatives | W3: X'X
B4: Point | C4: Input | D4: Output | E4: Fitted Function | F4: Residuals | H4: Simulation Coefficients | I4: Coef 1 | J4: Coef 2 | K4: Coef 3 | L4: Coef 4 | S4: Coef 1 | T4: Coef 2 | U4: Coef 3 | W4: =SUMPRODUCT($S$5:$S$34,$S$5:$S$34) -> 30 | X4: =SUMPRODUCT($S$5:$S$34,$T$5:$T$34) -> 0 | Y4: =SUMPRODUCT($S$5:$S$34,$U$5:$U$34) -> 0
B5: 1 | C5: 0.8 | D5: 2.583595149 | E5: =(K8*J8+I8*$C$5^L8)/(J8+$C$5^L8) -> 3.100249844 | F5: =$D$5-$E$5 -> -0.5166546952 | I5: 4.36 | J5: -5.57 | K5: 1.06 | L5: 2.07 | S5: =1 -> 1 | T5: =IF($C$5<K8,(K8-$C$5)^2,0) -> 0 | U5: =IF($C$5<K8,J8*2*(K8-$C$5),0) -> 0 | W5: =SUMPRODUCT($T$5:$T$34,$S$5:$S$34) -> 0 | X5: =SUMPRODUCT($T$5:$T$34,$T$5:$T$34) -> 0 | Y5: =SUMPRODUCT($T$5:$T$34,$U$5:$U$34) -> 0
B6: 2 | C6: 0.8 | D6: 2.845732592 | E6: =(K8*J8+I8*$C$6^L8)/(J8+$C$6^L8) -> 3.100249844 | F6: =$D$6-$E$6 -> -0.2545172518 | S6: =1 -> 1 | T6: =IF($C$6<K8,(K8-$C$6)^2,0) -> 0 | U6: =IF($C$6<K8,J8*2*(K8-$C$6),0) -> 0 | W6: =SUMPRODUCT($U$5:$U$34,$S$5:$S$34) -> 0 | X6: =SUMPRODUCT($U$5:$U$34,$T$5:$T$34) -> 0 | Y6: =SUMPRODUCT($U$5:$U$34,$U$5:$U$34) -> 0
B7: 3 | C7: 0.8 | D7: 2.59222808 | E7: =(K8*J8+I8*$C$7^L8)/(J8+$C$7^L8) -> 3.100249844 | F7: =$D$7-$E$7 -> -0.508021764 | H7: Estimated Coefficients | I7: Coef 1 | J7: Coef 2 | K7: Coef 3 | L7: Coef 4 | M7: SSE | N7: R-Squared | S7: =1 -> 1 | T7: =IF($C$7<K8,(K8-$C$7)^2,0) -> 0 | U7: =IF($C$7<K8,J8*2*(K8-$C$7),0) -> 0 | W7: inv(X'X)
B8: 4 | C8: 0.8 | D8: 2.948167364 | E8: =(K8*J8+I8*$C$8^L8)/(J8+$C$8^L8) -> 3.100249844 | F8: =$D$8-$E$8 -> -0.1520824802 | I8: 17837.89517 | J8: 263.5982087 | K8: -63.91362312 | L8: 0.04293619463 | M8: =SUMPRODUCT($F$5:$F$34,$F$5:$F$34) -> 4.496817133 | N8: =1-$M$8/(SUMPRODUCT($D$5:$D$34,$D$5:$D$34)-COUNT($D$5:$D$34)*AVERAGE($D$5:$D$34)^2) -> 0.6874244702 | S8: =1 -> 1 | T8: =IF($C$8<K8,(K8-$C$8)^2,0) -> 0 | U8: =IF($C$8<K8,J8*2*(K8-$C$8),0) -> 0 | W8: =MINVERSE(W4:Y6) -> 
B9: 5 | C9: 0.8 | D9: 2.634989322 | E9: =(K8*J8+I8*$C$9^L8)/(J8+$C$9^L8) -> 3.100249844 | F9: =$D$9-$E$9 -> -0.4652605215 | S9: =1 -> 1 | T9: =IF($C$9<K8,(K8-$C$9)^2,0) -> 0 | U9: =IF($C$9<K8,J8*2*(K8-$C$9),0) -> 0
B10: 6 | C10: 0.8 | D10: 2.870763446 | E10: =(K8*J8+I8*$C$10^L8)/(J8+$C$10^L8) -> 3.100249844 | F10: =$D$10-$E$10 -> -0.2294863977 | H10: Error Analysis | I10: # of Obs, n | J10: # of Regrs, K | K10: sigma | S10: =1 -> 1 | T10: =IF($C$10<K8,(K8-$C$10)^2,0) -> 0 | U10: =IF($C$10<K8,J8*2*(K8-$C$10),0) -> 0
B11: 7 | C11: 0.95 | D11: 3.943228223 | E11: =(K8*J8+I8*$C$11^L8)/(J8+$C$11^L8) -> 3.594675328 | F11: =$D$11-$E$11 -> 0.3485528952 | I11: 30 | J11: 4 | K11: =SQRT(M8/(I11-J11)) -> 0.4158779931 | L11: *sigma^2 = SSE/(n-K) | S11: =1 -> 1 | T11: =IF($C$11<K8,(K8-$C$11)^2,0) -> 0 | U11: =IF($C$11<K8,J8*2*(K8-$C$11),0) -> 0
B12: 8 | C12: 0.95 | D12: 3.737474957 | E12: =(K8*J8+I8*$C$12^L8)/(J8+$C$12^L8) -> 3.594675328 | F12: =$D$12-$E$12 -> 0.1427996289 | S12: =1 -> 1 | T12: =IF($C$12<K8,(K8-$C$12)^2,0) -> 0 | U12: =IF($C$12<K8,J8*2*(K8-$C$12),0) -> 0
B13: 9 | C13: 0.95 | D13: 4.120950051 | E13: =(K8*J8+I8*$C$13^L8)/(J8+$C$13^L8) -> 3.594675328 | F13: =$D$13-$E$13 -> 0.5262747234 | H13: Standard Errors | I13: Coef 1 | J13: Coef 2 | K13: Coef 3 | S13: =1 -> 1 | T13: =IF($C$13<K8,(K8-$C$13)^2,0) -> 0 | U13: =IF($C$13<K8,J8*2*(K8-$C$13),0) -> 0
B14: 10 | C14: 0.95 | D14: 3.902783473 | E14: =(K8*J8+I8*$C$14^L8)/(J8+$C$14^L8) -> 3.594675328 | F14: =$D$14-$E$14 -> 0.3081081453 | I14: =SQRT(W8)*$K$11 ->  | J14: =SQRT(X9)*$K$11 ->  | K14: =SQRT(Y10)*$K$11 ->  | S14: =1 -> 1 | T14: =IF($C$14<K8,(K8-$C$14)^2,0) -> 0 | U14: =IF($C$14<K8,J8*2*(K8-$C$14),0) -> 0
B15: 11 | C15: 0.95 | D15: 3.67040701 | E15: =(K8*J8+I8*$C$15^L8)/(J8+$C$15^L8) -> 3.594675328 | F15: =$D$15-$E$15 -> 0.07573168236 | S15: =1 -> 1 | T15: =IF($C$15<K8,(K8-$C$15)^2,0) -> 0 | U15: =IF($C$15<K8,J8*2*(K8-$C$15),0) -> 0
B16: 12 | C16: 0.95 | D16: 3.665750239 | E16: =(K8*J8+I8*$C$16^L8)/(J8+$C$16^L8) -> 3.594675328 | F16: =$D$16-$E$16 -> 0.07107491136 | S16: =1 -> 1 | T16: =IF($C$16<K8,(K8-$C$16)^2,0) -> 0 | U16: =IF($C$16<K8,J8*2*(K8-$C$16),0) -> 0
B17: 13 | C17: 1.1 | D17: 4.665093098 | E17: =(K8*J8+I8*$C$17^L8)/(J8+$C$17^L8) -> 4.019335343 | F17: =$D$17-$E$17 -> 0.6457577557 | S17: =1 -> 1 | T17: =IF($C$17<K8,(K8-$C$17)^2,0) -> 0 | U17: =IF($C$17<K8,J8*2*(K8-$C$17),0) -> 0
B18: 14 | C18: 1.1 | D18: 4.179603935 | E18: =(K8*J8+I8*$C$18^L8)/(J8+$C$18^L8) -> 4.019335343 | F18: =$D$18-$E$18 -> 0.1602685924 | S18: =1 -> 1 | T18: =IF($C$18<K8,(K8-$C$18)^2,0) -> 0 | U18: =IF($C$18<K8,J8*2*(K8-$C$18),0) -> 0
B19: 15 | C19: 1.1 | D19: 4.63259698 | E19: =(K8*J8+I8*$C$19^L8)/(J8+$C$19^L8) -> 4.019335343 | F19: =$D$19-$E$19 -> 0.6132616376 | S19: =1 -> 1 | T19: =IF($C$19<K8,(K8-$C$19)^2,0) -> 0 | U19: =IF($C$19<K8,J8*2*(K8-$C$19),0) -> 0
B20: 16 | C20: 1.1 | D20: 4.803769272 | E20: =(K8*J8+I8*$C$20^L8)/(J8+$C$20^L8) -> 4.019335343 | F20: =$D$20-$E$20 -> 0.7844339294 | S20: =1 -> 1 | T20: =IF($C$20<K8,(K8-$C$20)^2,0) -> 0 | U20: =IF($C$20<K8,J8*2*(K8-$C$20),0) -> 0
B21: 17 | C21: 1.1 | D21: 4.421547144 | E21: =(K8*J8+I8*$C$21^L8)/(J8+$C$21^L8) -> 4.019335343 | F21: =$D$21-$E$21 -> 0.4022118012 | S21: =1 -> 1 | T21: =IF($C$21<K8,(K8-$C$21)^2,0) -> 0 | U21: =IF($C$21<K8,J8*2*(K8-$C$21),0) -> 0
B22: 18 | C22: 1.1 | D22: 4.304725313 | E22: =(K8*J8+I8*$C$22^L8)/(J8+$C$22^L8) -> 4.019335343 | F22: =$D$22-$E$22 -> 0.2853899701 | S22: =1 -> 1 | T22: =IF($C$22<K8,(K8-$C$22)^2,0) -> 0 | U22: =IF($C$22<K8,J8*2*(K8-$C$22),0) -> 0
B23: 19 | C23: 1.25 | D23: 4.251111043 | E23: =(K8*J8+I8*$C$23^L8)/(J8+$C$23^L8) -> 4.391796058 | F23: =$D$23-$E$23 -> -0.1406850152 | S23: =1 -> 1 | T23: =IF($C$23<K8,(K8-$C$23)^2,0) -> 0 | U23: =IF($C$23<K8,J8*2*(K8-$C$23),0) -> 0
B24: 20 | C24: 1.25 | D24: 4.243692722 | E24: =(K8*J8+I8*$C$24^L8)/(J8+$C$24^L8) -> 4.391796058 | F24: =$D$24-$E$24 -> -0.148103336 | S24: =1 -> 1 | T24: =IF($C$24<K8,(K8-$C$24)^2,0) -> 0 | U24: =IF($C$24<K8,J8*2*(K8-$C$24),0) -> 0
B25: 21 | C25: 1.25 | D25: 4.486471719 | E25: =(K8*J8+I8*$C$25^L8)/(J8+$C$25^L8) -> 4.391796058 | F25: =$D$25-$E$25 -> 0.09467566076 | S25: =1 -> 1 | T25: =IF($C$25<K8,(K8-$C$25)^2,0) -> 0 | U25: =IF($C$25<K8,J8*2*(K8-$C$25),0) -> 0
B26: 22 | C26: 1.25 | D26: 3.633599196 | E26: =(K8*J8+I8*$C$26^L8)/(J8+$C$26^L8) -> 4.391796058 | F26: =$D$26-$E$26 -> -0.7581968618 | S26: =1 -> 1 | T26: =IF($C$26<K8,(K8-$C$26)^2,0) -> 0 | U26: =IF($C$26<K8,J8*2*(K8-$C$26),0) -> 0
B27: 23 | C27: 1.25 | D27: 4.354943241 | E27: =(K8*J8+I8*$C$27^L8)/(J8+$C$27^L8) -> 4.391796058 | F27: =$D$27-$E$27 -> -0.0368528168 | S27: =1 -> 1 | T27: =IF($C$27<K8,(K8-$C$27)^2,0) -> 0 | U27: =IF($C$27<K8,J8*2*(K8-$C$27),0) -> 0
B28: 24 | C28: 1.25 | D28: 4.527422547 | E28: =(K8*J8+I8*$C$28^L8)/(J8+$C$28^L8) -> 4.391796058 | F28: =$D$28-$E$28 -> 0.1356264894 | S28: =1 -> 1 | T28: =IF($C$28<K8,(K8-$C$28)^2,0) -> 0 | U28: =IF($C$28<K8,J8*2*(K8-$C$28),0) -> 0
B29: 25 | C29: 1.4 | D29: 4.936218155 | E29: =(K8*J8+I8*$C$29^L8)/(J8+$C$29^L8) -> 4.723696079 | F29: =$D$29-$E$29 -> 0.2125220763 | S29: =1 -> 1 | T29: =IF($C$29<K8,(K8-$C$29)^2,0) -> 0 | U29: =IF($C$29<K8,J8*2*(K8-$C$29),0) -> 0
B30: 26 | C30: 1.4 | D30: 4.42919806 | E30: =(K8*J8+I8*$C$30^L8)/(J8+$C$30^L8) -> 4.723696079 | F30: =$D$30-$E$30 -> -0.2944980184 | S30: =1 -> 1 | T30: =IF($C$30<K8,(K8-$C$30)^2,0) -> 0 | U30: =IF($C$30<K8,J8*2*(K8-$C$30),0) -> 0
B31: 27 | C31: 1.4 | D31: 4.449827829 | E31: =(K8*J8+I8*$C$31^L8)/(J8+$C$31^L8) -> 4.723696079 | F31: =$D$31-$E$31 -> -0.2738682498 | S31: =1 -> 1 | T31: =IF($C$31<K8,(K8-$C$31)^2,0) -> 0 | U31: =IF($C$31<K8,J8*2*(K8-$C$31),0) -> 0
B32: 28 | C32: 1.4 | D32: 4.124873777 | E32: =(K8*J8+I8*$C$32^L8)/(J8+$C$32^L8) -> 4.723696079 | F32: =$D$32-$E$32 -> -0.598822302 | S32: =1 -> 1 | T32: =IF($C$32<K8,(K8-$C$32)^2,0) -> 0 | U32: =IF($C$32<K8,J8*2*(K8-$C$32),0) -> 0
B33: 29 | C33: 1.4 | D33: 4.706433926 | E33: =(K8*J8+I8*$C$33^L8)/(J8+$C$33^L8) -> 4.723696079 | F33: =$D$33-$E$33 -> -0.01726215248 | S33: =1 -> 1 | T33: =IF($C$33<K8,(K8-$C$33)^2,0) -> 0 | U33: =IF($C$33<K8,J8*2*(K8-$C$33),0) -> 0
B34: 30 | C34: 1.4 | D34: 4.274509584 | E34: =(K8*J8+I8*$C$34^L8)/(J8+$C$34^L8) -> 4.723696079 | F34: =$D$34-$E$34 -> -0.4491864946 | S34: =1 -> 1 | T34: =IF($C$34<K8,(K8-$C$34)^2,0) -> 0 | U34: =IF($C$34<K8,J8*2*(K8-$C$34),0) -> 0
